Cogmind - Beta 13 @@@ ROGUE MODE // 2024.03.06 @ 22:11:54 Player: Mogwok Wargfriend Result: Destroyed by P-80 Master with Gamma Rifle Performance ------------- Evolutions (8) 4000 Regions Visited (14) 2800 Robots Destroyed (35) 175 Value Destroyed (1148) 1148 Prototype IDs (16) 320 Alien Tech Used (0) 0 Bonus (3036) 3036 TOTAL SCORE: 11479 Bonus ------- Triggered High Security 500 High Alert Combat Kills 127 Follower Combat Kills 2549 Friendly Fire -140 Cogmind --------- Core Integrity 0/1450 Matter 203/300 Energy 100/100 System Corruption 26% Temperature Cool (0) Movement Core (50) Location -2/Research Parts ------- > --- POWER (3) -------- (None) > --- PROPULSION (8) --- (None) > --- UTILITY (9) ------ Improved System Shield > --- WEAPON (3) ------- (None) > --- INVENTORY (5) ---- Light Antimatter Reactor Light Quantum Reactor Experimental Q-thruster Advanced ECM Suite Advanced Trap Extractor (0/8) Peak State ------------ > --- POWER ------------ Fusion Compressor > --- PROPULSION ------- Cooled Field Propulsion Drive Cooled Field Propulsion Drive Impulse Thruster Array Impulse Thruster Array Impulse Thruster Array > --- UTILITY ---------- Gravity Neutralizer Advanced Sensor Array Advanced Signal Interpreter Experimental Targeting Computer Experimental Focal Shield Improved System Shield Improved System Shield Improved System Shield Advanced System Shield > --- WEAPON ----------- (None) > --- INVENTORY -------- VTOL Module Advanced ECM Suite Advanced Trap Extractor [Rating: 122] Favorites ----------- Power Neutrino Core Engine Ion Engine Power Core Neutrino Core Reactor Light Particle Reactor Propulsion Nuclear Pulse Thruster Treads Improved Medium Treads Leg Aluminum Leg Wheel Wheel Hover Unit Improved Hover Unit Flight Unit Nuclear Pulse Thruster Utility System Shield Device Advanced Sensor Array Storage Medium Storage Unit Processor Advanced Signal Interpreter Hackware System Shield Protection Improved Propulsion Shielding Weapon Backup Laser III Energy Gun Backup Laser III Energy Cannon Particle Cannon Ballistic Gun Light Assault Rifle Ballistic Cannon Slug Cannon Impact Weapon Flail Slashing Weapon Chainsword Special Melee Weapon Advanced Datajack Build | -11 -10 -9 -8 -7 -6 -6 -6 -6 -5 -5 -5 -4 -3 -2 ------- Run | Yrd Mat Mat Mat Fac Fac Was Fac Ext Fac Was Fac Fac Res Res Slots Evolved 16 | . . 2 2 2 2 . . . 2 . . 2 2 2 Power 2 | . . . . 1 . . . . . . . . . 1 Propulsion 6 | . . 1 1 . 2 . . . . . . 1 . 1 Utility 7 | . . 1 1 1 . . . . 2 . . 1 1 . Weapon 1 | . . . . . . . . . . . . . 1 . Parts Attached 190 | 6 18 17 9 32 11 16 7 4 8 7 2 9 14 30 Power 29 | 1 4 2 1 3 2 2 . 1 5 . . 1 . 7 Engine 13 | 1 3 1 1 2 1 . . . 2 . . . . 2 Core 11 | . 1 1 . 1 1 1 . 1 3 . . 1 . 1 Reactor 5 | . . . . . . 1 . . . . . . . 4 Propulsion 72 | 2 7 7 6 13 6 6 4 1 . . . 4 2 14 Treads 7 | . 1 . . 2 1 2 1 . . . . . . . Leg 20 | . 5 4 . 8 2 1 . . . . . . . . Wheel 5 | 2 . . 1 1 1 . . . . . . . . . Hover 2 | . . . 1 . . . . . . . . 1 . . Flight 38 | . 1 3 4 2 2 3 3 1 . . . 3 2 14 Utility 68 | 1 4 6 2 14 2 5 3 2 1 5 2 2 11 8 Device 27 | . . 2 2 3 . 3 2 1 . 1 1 2 6 4 Storage 3 | 1 1 1 . . . . . . . . . . . . Processor 12 | . . . . 7 1 . 1 . . 1 . . . 2 Hackware 8 | . . . . 1 1 . . . 1 . 1 . 3 1 Protection 18 | . 3 3 . 3 . 2 . 1 . 3 . . 2 1 Artifact . | . . . . . . . . . . . . . . . Weapon 21 | 2 3 2 . 2 1 3 . . 2 2 . 2 1 1 Energy Gun 5 | 1 3 1 . . . . . . . . . . . . Energy Cannon 3 | . . 1 . 1 . . . . . 1 . . . . Ballistic Gun 1 | 1 . . . . . . . . . . . . . . Ballistic Cannon 6 | . . . . . . 2 . . 1 1 . 1 . 1 Launcher . | . . . . . . . . . . . . . . . Special Weapon . | . . . . . . . . . . . . . . . Impact Weapon 1 | . . . . . . . . . 1 . . . . . Slashing Weapon 3 | . . . . 1 1 1 . . . . . . . . Piercing Weapon . | . . . . . . . . . . . . . . . Special Melee Weapon 2 | . . . . . . . . . . . . 1 1 . Unidentified Prototypes 14 | . . . . 2 1 1 . . . 2 . . 1 7 Corrupted Parts 2 | . . . . 1 . . . . . . . . . 1 System Corruption 3 | . . . . 2 . . . . . . . . . 1 Parts Lost 70 | . 9 1 4 9 6 . 1 3 . . . . 3 34 Power 10 | . 3 . . . . . . 1 . . . . . 6 Propulsion 35 | . 2 1 3 6 6 . 1 . . . . . 2 14 Utility 19 | . 2 . . 3 . . . 2 . . . . 1 11 Weapon 6 | . 2 . 1 . . . . . . . . . . 3 Highest Loss Streak 16 | . 4 1 2 4 4 . 1 1 . . . . 3 16 To Critical Strikes 2 | . 1 . . . . . . . . . . . . 1 Average Slot Usage (%) 81 | . 89 92 72 53 68 76 92 91 86 93 94 93 94 58 Engine 1 | . 11 2 . . 1 . . . . . . . . . Core 6 | . 2 8 8 . 1 . 6 11 11 11 11 10 9 4 Treads 1 | . . . . 2 5 9 4 . . . . . . . Leg 7 | . 7 26 . 21 4 4 . . . . . . . . Wheel 2 | . 18 . 2 . 9 . . . . . . . . . Flight 18 | . . 6 29 2 6 12 28 33 29 29 29 30 28 20 Device 8 | . . 10 11 3 . 4 10 12 11 11 11 14 14 10 Storage 2 | . 13 9 . . . . . . . . . . . . Processor 6 | . . . . 16 23 13 8 6 5 5 5 5 4 3 Hackware 6 | . . . . 1 8 13 13 9 9 11 11 10 13 12 Protection 4 | . 10 8 . 2 . 1 . 2 5 10 11 10 8 . Energy Gun 5 | . 12 9 8 . . 5 6 6 5 5 5 5 4 1 Energy Cannon 1 | . . 10 9 . . . . . . . . . . . Ballistic Gun 1 | . 11 . . . . . . . . . . . . . Ballistic Cannon 2 | . . . . . . 3 6 6 4 5 5 4 4 . Naked Turns . | . . . . . . . . . . . . . . . Heaviest Build 45 | 13 16 26 13 12 8 29 31 33 32 39 37 40 44 45 Greatest Support 67 | 26 26 30 16 16 12 34 38 38 38 38 38 42 42 67 Greatest Overweight (x) 3 | . 3 1 2 3 1 1 1 1 1 1 . 3 1 1 Average Overweight (x) . | . . . . . . . . . . . . . . . Largest Inventory Capacity 10 | 8 8 10 5 5 5 5 5 5 5 5 5 5 5 5 Average Capacity 5 | 7 7 9 5 5 5 5 5 5 5 5 5 5 5 5 Most Carried 10 | 6 8 10 5 5 5 5 5 5 5 5 5 5 5 5 Average Carried 5 | 2 7 8 4 4 4 4 4 4 4 4 5 4 4 4 Final Capacity 8 | 8 8 5 5 5 5 5 5 5 5 5 5 5 5 5 Final Carried 7 | 6 7 5 5 5 5 4 4 5 5 5 5 5 4 5 Class Distribution -------------------- 29% | Mutant 26% | Hacker-Sprinter 22% | Hacker-Mutant 14% | Scavenger-Mutant 4% | Scavenger-Sprinter Dominant Class ---------------- Mutant | -10/Materials Scavenger-Mutant | -9/Materials Mutant | -8/Materials Mutant | -7/Factory Mutant | -6/Factory Hacker-Mutant | -6/Waste Hacker-Mutant | -6/Factory Hacker-Mutant | -6/Extension Hacker-Sprinter | -5/Factory Hacker-Mutant | -5/Waste Hacker-Sprinter | -5/Factory Hacker-Sprinter | -4/Factory Hacker-Sprinter | -3/Research Hacker-Sprinter | -2/Research Resources | -11 -10 -9 -8 -7 -6 -6 -6 -6 -5 -5 -5 -4 -3 -2 ----------- Run | Yrd Mat Mat Mat Fac Fac Was Fac Ext Fac Was Fac Fac Res Res Matter Collected 2304 | 200 238 184 80 50 149 355 121 286 . 168 39 . 99 335 Remotely . | . . . . . . . . . . . . . . . Salvage Created 1241 | . 342 497 118 . 18 . 23 204 . . 39 . . . Parts 77 | . 20 33 12 . . . . 9 . . 3 . . . Haulers Intercepted 1 | . 1 . . . . . . . . . . . . . Recyclers Shooed 3 | . . 1 . . . . 1 1 . . . . . . Parts Field Recycled . | . . . . . . . . . . . . . . . Retrieved Matter . | . . . . . . . . . . . . . . . Parts Self-Destructed . | . . . . . . . . . . . . . . . Prevented . | . . . . . . . . . . . . . . . Kills | -11 -10 -9 -8 -7 -6 -6 -6 -6 -5 -5 -5 -4 -3 -2 ------- Run | Yrd Mat Mat Mat Fac Fac Was Fac Ext Fac Was Fac Fac Res Res Combat Hostiles Destroyed 30 | . 5 11 8 . 1 . 1 3 . . 1 . . . Melee 1 | . . . . . 1 . . . . . . . . . Guns 14 | . 5 3 3 . . . 1 1 . . 1 . . . Cannons 15 | . . 8 5 . . . . 2 . . . . . . Classes Destroyed 9 | . 4 3 . . 1 . 1 . . . . . . . Worker 1 | . 1 . . . . . . . . . . . . . Hauler 1 | . 1 . . . . . . . . . . . . . Operator 2 | . 1 . . . . . . . . . 1 . . . Watcher 2 | . . 1 . . . . . 1 . . . . . . Swarmer 12 | . . 3 8 . . . . . . . 1 . . . Grunt 7 | . 5 2 . . . . . . . . . . . . Brawler 1 | . . . . . . . 1 . . . . . . . Sentry 9 | . . 6 . . . . . 3 . . . . . . Assembled 1 | . . . . . 1 . . . . . . . . . Best Kill Streak 4 | . 3 4 4 . 1 . 1 1 . . 2 . . . Combat Bots Only 4 | . 3 3 4 . 1 . 1 1 . . 1 . . . Max Kills in Single Turn 1 | . 1 1 1 . 1 . 1 1 . . 1 . . . Gunslinging . | . . . . . . . . . . . . . . . Exploded . | . . . . . . . . . . . . . . . Melee 1 | . . . . . 1 . . . . . . . . . Uniques/NPCs Destroyed . | . . . . . . . . . . . . . . . Combat | -11 -10 -9 -8 -7 -6 -6 -6 -6 -5 -5 -5 -4 -3 -2 -------- Run | Yrd Mat Mat Mat Fac Fac Was Fac Ext Fac Was Fac Fac Res Res Hostile Shots Fired 897 | . 72 41 43 263 99 . 6 67 . . 5 . 26 275 Missed 409 | . 23 11 15 129 42 . 4 28 . . 3 . 17 137 Damage Taken 8431 | . 952 380 231 1587 692 86 102 364 . . 56 . 233 3748 Core 2479 | . 173 63 43 482 185 . . 35 . . . . 28 1470 Absorbed by Shields 60 | . . . . . . . . 60 . . . . . . Redirected to Shielding 175 | . . . . 106 . . . 17 . . 14 . 38 . Regen/Repaired (Parts) 592 | . . . . . . 476 8 . . 108 . . . . Core Remaining (%) 78 | 100 30 84 92 31 . . . 74 . . 100 100 97 . Volleys Fired 145 | . 42 32 12 3 . . 11 31 2 . 7 . 5 . Largest 2 | . 2 2 2 1 . . 2 2 2 . 2 . 2 . Hottest 108 | . 60 108 108 68 . . 88 88 88 . 88 . 88 . Shots Fired 260 | . 75 50 24 3 . . 22 58 4 . 14 . 10 . Gun 157 | . 75 18 12 . . . 11 27 2 . 7 . 5 . Cannon 103 | . . 32 12 3 . . 11 31 2 . 7 . 5 . Launcher . | . . . . . . . . . . . . . . . Special . | . . . . . . . . . . . . . . . Kinetic 98 | . 42 . . . . . 11 31 2 . 7 . 5 . Thermal 134 | . 5 50 24 3 . . 11 27 2 . 7 . 5 . Explosive . | . . . . . . . . . . . . . . . Electromagnetic 28 | . 28 . . . . . . . . . . . . . Robot Hit Streak 9 | . 8 7 3 2 . . 5 9 . . 3 . . . Robot Miss Streak 5 | . 3 3 2 1 . . 5 4 . . 3 . . . Penetration Max . | . . . . . . . . . . . . . . . Secondary Targets 2 | . 2 . . . . . . . . . . . . . Max Gunslinging Chain 1 | . 1 . . . . . . . . . . . . . Shots Hit Robots 137 | . 50 29 10 3 2 . 4 29 . . 5 3 2 . Core Hits 64 | . 22 15 8 . 2 . 4 11 . . 2 . . . Critical Kills 1 | . . . . . . . . 1 . . . . . . Critical Parts Destroyed 1 | . . . . . . . . 1 . . . . . . Critical Strikes 5 | . . . . 1 . . . 4 . . . . . . Destroy 4 | . . . . . . . . 4 . . . . . . Sever 1 | . . . . 1 . . . . . . . . . . Melee Attacks 11 | . . . . 4 2 . . . . . . 3 2 . Impact . | . . . . . . . . . . . . . . . Slashing 6 | . . . . 4 2 . . . . . . . . . Piercing . | . . . . . . . . . . . . . . . Sneak Attacks 5 | . . . . . . . . . . . . 3 2 . Combat Hostiles . | . . . . . . . . . . . . . . . Follow-up Attacks . | . . . . . . . . . . . . . . . Damage Inflicted 2485 | . 581 527 188 139 103 . 85 761 . . 89 . . 12 Guns 942 | . 508 77 44 . . . 49 210 . . 54 . . . Cannons 1255 | . . 449 144 40 . . 36 551 . . 35 . . . Explosions 68 | . 68 . . . . . . . . . . . . . Melee 135 | . . . . 42 93 . . . . . . . . . Ramming 85 | . 5 1 . 57 10 . . . . . . . . 12 Kinetic 830 | . 208 . . . . . 36 551 . . 35 . . . Thermal 1146 | . 79 526 188 40 . . 49 210 . . 54 . . . Explosive . | . . . . . . . . . . . . . . . Electromagnetic 289 | . 289 . . . . . . . . . . . . . Impact . | . . . . . . . . . . . . . . . Slashing 135 | . . . . 42 93 . . . . . . . . . Piercing . | . . . . . . . . . . . . . . . Highest Corruption 25 | . 1 . . 3 . . 5 7 . . . . . 25 Average Corruption 4 | . 1 . . 2 . . 5 5 . . . . . 9 Corruption Purged . | . . . . . . . . . . . . . . . Corruption Blocked 3 | . . . . 3 . . . . . . . . . . Effects 50 | . 5 . . 6 . . 4 19 . . . . . 16 Message Errors 12 | . 1 . . 1 . . 2 6 . . . . . 2 Matter Fused 18 | . 2 . . 3 . . . 6 . . . . . 7 Heat Flow Errors 1 | . . . . . . . 1 . . . . . . . Energy Discharges 5 | . 1 . . . . . . 2 . . . . . 2 Data Loss (minor) 4 | . . . . 1 . . . 2 . . . . . 1 Data Loss (major) 3 | . . . . 1 . . 1 1 . . . . . . Misfires 1 | . . . . . . . . 1 . . . . . . Misdirections 4 | . . . . . . . . . . . . . . 4 Weapon Failures 2 | . 1 . . . . . . 1 . . . . . . Overload Shots . | . . . . . . . . . . . . . . . Overflow Damage 22 | . . 1 . 10 11 . . . . . . . . . Projectiles 11 | . . 1 . 10 . . . . . . . . . . Explosions . | . . . . . . . . . . . . . . . Melee 11 | . . . . . 11 . . . . . . . . . Knockbacks 3 | . . . . . . . 1 1 . . . . . 1 Impact 1 | . . . . . . . . . . . . . . 1 Kinetic 2 | . . . . . . . 1 1 . . . . . . Secondary . | . . . . . . . . . . . . . . . Self-Inflicted Damage 64 | . 27 . . 26 5 . . . . . . . . 6 Shots 1 | . 1 . . . . . . . . . . . . . Rammed 14 | . . . . 8 3 . . . . . . . . 3 Targets Rammed 17 | . 2 1 . 8 3 . . . . . . . . 3 Kicked 3 | . 2 1 . . . . . . . . . . . . Crushed . | . . . . . . . . . . . . . . . Highest Temperature 358 | . 161 67 332 358 3 . 135 264 . . 22 4 17 3 Average Temperature 61 | . 58 17 149 187 3 . 54 83 . . 9 1 6 3 Received Heat Transfer 1501 | . 342 150 18 576 160 . 9 75 . . 18 . 18 135 Effects 1 | . . . . . . . . 1 . . . . . . Energy Bleed 1 | . . . . . . . . 1 . . . . . . Siege Activations . | . . . . . . . . . . . . . . . Robots Corrupted . | . . . . . . . . . . . . . . . Combat Hostiles . | . . . . . . . . . . . . . . . Parts Fried 1 | . 1 . . . . . . . . . . . . . Impact Corruptions . | . . . . . . . . . . . . . . . Robots Melted . | . . . . . . . . . . . . . . . Combat Hostiles . | . . . . . . . . . . . . . . . Parts Melted 3 | . . 3 . . . . . . . . . . . . Heat Transferred 2416 | . 125 989 359 74 . . 148 573 . . 148 . . . Parts Sabotaged . | . . . . . . . . . . . . . . . Parts Stolen . | . . . . . . . . . . . . . . . Parts Stripped . | . . . . . . . . . . . . . . . Power Chain Reactions 1 | . 1 . . . . . . . . . . . . . Alert | -11 -10 -9 -8 -7 -6 -6 -6 -6 -5 -5 -5 -4 -3 -2 ------- Run | Yrd Mat Mat Mat Fac Fac Was Fac Ext Fac Was Fac Fac Res Res Peak Influence 1969 | . 193 323 385 659 241 87 581 1969 1161 406 1136 605 363 319 Initial 1100 | . . 3 75 175 212 75 . 284 1100 406 284 536 228 198 Average 381 | . 67 176 240 390 225 78 166 1025 1118 406 568 535 255 234 Maximum Alert Level 5 | . . 1 1 2 1 . 2 5 4 2 4 2 1 1 Low Security (%) 34 | 100 100 58 47 7 . 100 78 . . . . . . 29 Level 1 32 | . . 41 52 52 100 . 12 7 . . 61 . 100 70 Level 2 18 | . . . . 39 . . 9 6 . 100 4 100 . . Level 3 6 | . . . . . . . . 48 . . 29 . . . Level 4 6 | . . . . . . . . 27 100 . 4 . . . Level 5 . | . . . . . . . . . . . . . . . High Security 1 | . . . . . . . . 9 . . . . . . Max Security . | . . . . . . . . . . . . . . . Squads Dispatched 30 | . 3 1 1 6 . . 2 4 . . 5 4 1 3 Investigation 8 | . 1 . . 2 . . 1 . . . . 3 . 1 Extermination 3 | . . . . 1 . . . . . . 1 . 1 . Reinforcement 14 | . 2 1 1 3 . . 1 1 . . 3 . . 2 Assault 4 | . . . . . . . . 3 . . . 1 . . Garrison 1 | . . . . . . . . . . . 1 . . . Intercept . | . . . . . . . . . . . . . . . Searches Triggered 1 | . . . . 1 . . . . . . . . . . Construction Impeded 1 | . . . . . . . . 1 . . . . . . Haulers Reinforced 1 | . . . . . . . . . . . 1 . . . Active Scanning Responses . | . . . . . . . . . . . . . . . Cargo Convoy Interrupts . | . . . . . . . . . . . . . . . Stealth | -11 -10 -9 -8 -7 -6 -6 -6 -6 -5 -5 -5 -4 -3 -2 --------- Run | Yrd Mat Mat Mat Fac Fac Was Fac Ext Fac Was Fac Fac Res Res Distress Signals 7 | . 2 1 1 . . . 1 . . . 2 . . . Communications Jammed . | . . . . . . . . . . . . . . . Distress Signals . | . . . . . . . . . . . . . . . Times Spotted 238 | . 21 21 24 59 14 2 9 30 4 . 16 2 7 29 Peak Tracking Total 15 | . 6 6 6 15 5 1 4 10 2 . 6 2 6 12 Tactical Retreats 34 | . 1 3 4 15 1 . . 1 . . 1 . 1 7 Traps | -11 -10 -9 -8 -7 -6 -6 -6 -6 -5 -5 -5 -4 -3 -2 ------- Run | Yrd Mat Mat Mat Fac Fac Was Fac Ext Fac Was Fac Fac Res Res Traps Triggered 12 | . 2 1 . 1 1 . 1 3 1 . 1 1 . . Indirectly . | . . . . . . . . . . . . . . . Trap Hack Attempts 46 | . . . . . . . . . . . . . 46 . Triggered . | . . . . . . . . . . . . . . . Disarmed . | . . . . . . . . . . . . . . . Reprogrammed 9 | . . . . . . . . . . . . . 9 . Reused . | . . . . . . . . . . . . . . . Traps Extracted . | . . . . . . . . . . . . . . . Installed . | . . . . . . . . . . . . . . . Triggered . | . . . . . . . . . . . . . . . Machines | -11 -10 -9 -8 -7 -6 -6 -6 -6 -5 -5 -5 -4 -3 -2 ---------- Run | Yrd Mat Mat Mat Fac Fac Was Fac Ext Fac Was Fac Fac Res Res Machines Disabled 19 | . . . . . . . 4 4 1 . 6 . 4 . Max in Single Turn 1 | . . . . . . . . 1 1 . . . 1 . Garrison Access 1 | . . . . . . . . . . . . 1 . . Machines Repaired . | . . . . . . . . . . . . . . . Machines Dismantled . | . . . . . . . . . . . . . . . Machines Sabotaged . | . . . . . . . . . . . . . . . Overloaded Fab Kills . | . . . . . . . . . . . . . . . Hacking | -11 -10 -9 -8 -7 -6 -6 -6 -6 -5 -5 -5 -4 -3 -2 --------- Run | Yrd Mat Mat Mat Fac Fac Was Fac Ext Fac Was Fac Fac Res Res Machines Accessed 73 | . 6 7 5 10 4 . 5 8 6 . 5 9 3 5 Terminals 59 | . 6 5 5 7 4 . 4 8 4 . 4 5 3 4 Fabricators 9 | . . . . 3 . . 1 . 2 . 1 1 . 1 Repair Stations . | . . . . . . . . . . . . . . . Recycling Units 3 | . . 1 . . . . . . . . . 2 . . Scanalyzers 1 | . . 1 . . . . . . . . . . . . Garrison Access 1 | . . . . . . . . . . . . 1 . . Total Hacks 166 | . 11 13 15 21 5 . 8 14 19 . 9 22 6 23 Successful 68 | . 4 7 7 11 2 . 3 4 4 . 3 12 1 10 Failed 98 | . 7 6 8 10 3 . 5 10 15 . 6 10 5 13 Catastrophic 26 | . 2 2 2 2 2 . 1 5 4 . . 2 3 1 Database Lockouts . | . . . . . . . . . . . . . . . Manual 96 | . 10 10 12 7 3 . 3 5 13 . 5 9 8 11 Terminals 127 | . 11 11 15 12 5 . 5 14 14 . 7 11 6 16 Fabricators 30 | . . . . 9 . . 3 . 5 . 2 4 . 7 Repair Stations . | . . . . . . . . . . . . . . . Recycling Units 7 | . . 1 . . . . . . . . . 6 . . Scanalyzers 1 | . . 1 . . . . . . . . . . . . Garrison Access 1 | . . . . . . . . . . . . 1 . . Terminal Hacks 38 | . 3 6 5 4 2 . 1 4 1 . 2 2 1 7 Record 11 | . . 1 . 1 . . . . 1 . . 1 . 7 Part Schematic 4 | . 1 2 1 . . . . . . . . . . . Prototype ID Bank 1 | . . . 1 . . . . . . . . . . . Open Door 3 | . . . . . . . . 3 . . . . . . Open DSF 8 | . . . . 3 1 . 1 . . . 1 1 1 . Alert Level 5 | . 2 1 1 . 1 . . . . . . . . . Unreport Threat 1 | . . . . . . . . . . . 1 . . . Locate Traps 3 | . . 2 1 . . . . . . . . . . . Investigation Status 1 | . . . 1 . . . . . . . . . . . Recall Extermination 1 | . . . . . . . . 1 . . . . . . Fabricator Hacks 15 | . . . . 6 . . 2 . 1 . 1 3 . 2 Network Status 5 | . . . . 2 . . . . 1 . 1 1 . . Load Schematic 5 | . . . . 2 . . 1 . . . . 1 . 1 Build 5 | . . . . 2 . . 1 . . . . 1 . 1 Repair Station Hacks . | . . . . . . . . . . . . . . . Recycling Unit Hacks 3 | . . . . . . . . . . . . 3 . . Report Inventory 2 | . . . . . . . . . . . . 2 . . Retrieve Components 1 | . . . . . . . . . . . . 1 . . Scanalyzer . | . . . . . . . . . . . . . . . Garrison Access Hacks 1 | . . . . . . . . . . . . 1 . . Seal Access 1 | . . . . . . . . . . . . 1 . . Unauthorized Hacks 11 | . 1 1 2 1 . . . . 2 . . 3 . 1 Terminals 10 | . 1 1 2 1 . . . . 2 . . 2 . 1 Assimilate 10 | . 1 1 2 1 . . . . 2 . . 2 . 1 Fabricators . | . . . . . . . . . . . . . . . Repair Stations . | . . . . . . . . . . . . . . . Recycling Units 1 | . . . . . . . . . . . . 1 . . Monitor 1 | . . . . . . . . . . . . 1 . . Scanalyzers . | . . . . . . . . . . . . . . . Garrison Access . | . . . . . . . . . . . . . . . Data Cores Recovered 2 | . 1 . . . . . 1 . . . . . . . Used . | . . . . . . . . . . . . . . . Hacking Detections 56 | . 5 6 5 6 3 . 4 7 5 . 3 7 2 3 Full Trace Events 6 | . . . . 2 . . 1 . . . . 2 . 1 Feedback Events . | . . . . . . . . . . . . . . . Feedback Blocked . | . . . . . . . . . . . . . . . Robot Schematics Acquired . | . . . . . . . . . . . . . . . Robots Built . | . . . . . . . . . . . . . . . Authchips . | . . . . . . . . . . . . . . . Time . | . . . . . . . . . . . . . . . Total Robot Build Rating . | . . . . . . . . . . . . . . . Part Schematics Acquired 3 | . 1 1 1 . . . . . . . . . . . Parts Built 10 | . . . . 4 . . 2 . . . . 2 . 2 Authchips . | . . . . . . . . . . . . . . . Time 217 | . . . . 93 . . 62 . . . . 31 . 31 Total Part Build Rating 20 | . . . . 8 . . 4 . . . . 4 . 4 Parts Repaired . | . . . . . . . . . . . . . . . Time . | . . . . . . . . . . . . . . . Parts Recycled . | . . . . . . . . . . . . . . . Recycled Matter . | . . . . . . . . . . . . . . . Retrieved Matter . | . . . . . . . . . . . . . . . Retrieved Components 3 | . . . . . . . . . . . . 3 . . Parts Scanalyzed . | . . . . . . . . . . . . . . . Part Schematics Acquired . | . . . . . . . . . . . . . . . Parts Damaged . | . . . . . . . . . . . . . . . Bothacking | -11 -10 -9 -8 -7 -6 -6 -6 -6 -5 -5 -5 -4 -3 -2 ------------ Run | Yrd Mat Mat Mat Fac Fac Was Fac Ext Fac Was Fac Fac Res Res Used RIF Installer . | . . . . . . . . . . . . . . . Robots Hacked 3 | . . . . . . . . . . . . 2 1 . Non-combat 3 | . . . . . . . . . . . . 2 1 . Combat . | . . . . . . . . . . . . . . . Robot Hacks Applied 5 | . . . . . . . . . . . . 3 2 . parse_system 1 | . . . . . . . . . . . . 1 . . no_distress 3 | . . . . . . . . . . . . 2 1 . find_recycling 1 | . . . . . . . . . . . . . 1 . Relay Couplers Released . | . . . . . . . . . . . . . . . Fabnet Peak Effective % . | . . . . . . . . . . . . . . . Robots Rewired 13 | . . . . . . . . 13 . . . . . . Allies Hacked . | . . . . . . . . . . . . . . . Hacks Repelled . | . . . . . . . . . . . . . . . Allies | -11 -10 -9 -8 -7 -6 -6 -6 -6 -5 -5 -5 -4 -3 -2 -------- Run | Yrd Mat Mat Mat Fac Fac Was Fac Ext Fac Was Fac Fac Res Res Total Allies 58 | . . . . . . 20 . 18 . 20 . . . . Largest Group 21 | . . . . . . 20 18 19 4 21 20 . . . Highest-Rated Group 851 | . . . . . . 802 751 851 265 798 772 . . . Highest-Rated Ally 159 | . . . . . . 50 50 159 152 50 50 . . . Total Orders 1 | . . . . . . . . 1 . . . . . . GUARD 1 | . . . . . . . . 1 . . . . . . Ally Attacks 359 | . . . . . . 11 49 156 . . 143 . . . Total Damage 15732 | . . . . . . 907 2819 8267 . . 3739 . . . Kills 93 | . . . . . . 3 19 51 . . 20 . . . Allies Corrupted 3 | . . . . . . . 2 1 . . . . . . Allies Melted 2 | . . . . . . . . 2 . . . . . . Intel | -11 -10 -9 -8 -7 -6 -6 -6 -6 -5 -5 -5 -4 -3 -2 ------- Run | Yrd Mat Mat Mat Fac Fac Was Fac Ext Fac Was Fac Fac Res Res Robot Analysis Total . | . . . . . . . . . . . . . . . Derelict Logs Recovered . | . . . . . . . . . . . . . . . Drone Launches . | . . . . . . . . . . . . . . . Drone Recoveries . | . . . . . . . . . . . . . . . Exploration | -11 -10 -9 -8 -7 -6 -6 -6 -6 -5 -5 -5 -4 -3 -2 ------------- Run | Yrd Mat Mat Mat Fac Fac Was Fac Ext Fac Was Fac Fac Res Res Turns Passed 7130 | 58 639 880 367 1009 263 410 550 842 213 294 267 535 386 417 Spaces Moved 10401 | 48 448 810 478 1700 403 352 701 873 419 302 561 1283 1038 985 Core 1827 | 1 2 . . 1520 239 . . . . . . . . 65 Treads . | . . . . . . . . . . . . . . . Legs 495 | . 81 414 . . . . . . . . . . . . Wheels 400 | 47 353 . . . . . . . . . . . . . Hover 1 | . . . . . . . . . . . . 1 . . Flight 7678 | . 12 396 478 180 164 352 701 873 419 302 561 1282 1038 920 Fastest Speed 21 | 50 90 34 31 31 50 48 24 24 25 25 25 21 21 21 Average Speed 47 | 90 105 78 49 50 56 88 51 56 36 67 25 22 22 30 Slowest Speed 290 | 100 290 190 205 200 125 165 125 112 112 107 25 190 105 105 Overloaded Moves 7 | . . . . . . . . . . . . . . 7 Propulsion Burnouts . | . . . . . . . . . . . . . . . Robots Hopped 82 | . . 9 6 3 9 2 2 18 2 . 2 7 1 21 Cave-ins Triggered . | . . . . . . . . . . . . . . . Exploration Rate (%) 39 | 3 62 56 33 31 13 97 13 78 13 96 19 16 19 37 Regions Visited 14 Branch Regions 1 Pre-discovered Areas . | . . . . . . . . . . . . . . . Known Exits Taken 6 | . . . . 1 . . 1 1 . . 1 1 1 . Unknown Exits Taken 4 | 1 1 1 1 . . . . . . . . . . . Scrap Searched . | . . . . . . . . . . . . . . . Spaces Dug 5 | . . . . . . . 3 2 . . . . . . Terrain Destroyed 18 | . 4 . . . . . 5 5 . . 4 . . . Melee . | . . . . . . . . . . . . . . . Projectile 14 | . . . . . . . 5 5 . . 4 . . . AOE 4 | . 4 . . . . . . . . . . . . . Terrain Rammed . | . . . . . . . . . . . . . . . Walls Destroyed . | . . . . . . . . . . . . . . . Machines Disabled . | . . . . . . . . . . . . . . . Actions | -11 -10 -9 -8 -7 -6 -6 -6 -6 -5 -5 -5 -4 -3 -2 --------- Run | Yrd Mat Mat Mat Fac Fac Was Fac Ext Fac Was Fac Fac Res Res Total 12236 | 59 555 1001 578 1843 426 452 863 1143 473 391 671 1521 1178 1082 Wait 1142 | . 11 119 79 66 5 57 140 106 37 70 100 223 68 61 Move 10244 | 47 448 791 466 1694 390 347 696 844 415 301 556 1268 1035 946 Hop 65 | . . 9 5 3 4 2 2 10 2 . 2 7 1 18 Pick Up 60 | 6 13 11 2 5 4 2 1 2 2 1 1 4 . 6 Fast Attach 120 | 6 10 7 7 26 6 13 4 3 4 6 1 3 5 19 Attach 44 | . 7 5 1 2 5 3 1 1 1 1 . 2 6 9 Detach 50 | . 6 4 . 6 5 6 2 1 1 3 1 . 4 11 Swap 26 | . 1 5 1 4 . . 2 . 3 . 1 4 3 2 Drop 113 | . 16 17 5 23 2 15 4 1 6 5 2 7 3 7 Fire 145 | . 42 32 12 3 . . 11 31 2 . 7 . 5 . Melee 11 | . . . . 4 2 . . . . . . 3 2 . Ram 13 | . . . . 7 3 . . . . . . . . 3 Kick 2 | . 1 1 . . . . . . . . . . . . Crush . | . . . . . . . . . . . . . . . Escape Stasis 40 | . . . . . . . . 40 . . . . . . Rewire 115 | . . . . . . 7 . 104 . 4 . . . . Trap 46 | . . . . . . . . . . . . . 46 . Miscellaneous . | . . . . . . . . . . . . . . . Route ------- -11/Scrapyard -10/Materials (discovered 3 exits: *Mat x2 / [*Min]) -9/Materials (discovered 2 exits: *Mat / [*Min]) -8/Materials (discovered 2 exits: *Fac x2) -7/Factory (discovered 3 exits: *Fac / *Low x2) -6/Factory -6/Waste -6/Factory -6/Extension (discovered 2 exits: *Fac / *Cet) -5/Factory -5/Waste -5/Factory -4/Factory -3/Research -2/Research (discovered 1 exit: [*Qua]) History --------- Turn | Location | Event 33 | -11/Scrapyard | Discovered new exit (range 16) 59 | -11/Scrapyard | Entered Materials 132 | -10/Materials | Discovered new exit (range 15) 288 | -10/Materials | Discovered new exit (range 15) 310 | -10/Materials | Build established: Mutant 528 | -10/Materials | Lost 4 parts (1p2n1w) 600 | -10/Materials | Derelicts attacked the area 629 | -10/Materials | Core integrity fell below 50% 673 | -10/Materials | Discovered new exit (range 13) 698 | -10/Materials | Entered another Materials area 698 | -9/Materials | Evolved 2 slots: Propulsion x1, Utility x1 1060 | -9/Materials | Build established: Scavenger-Mutant 1465 | -9/Materials | Discovered new exit (range 8) 1536 | -9/Materials | Discovered new exit (range 15) 1578 | -9/Materials | Entered another Materials area 1578 | -8/Materials | Evolved 2 slots: Propulsion x1, Utility x1 1685 | -8/Materials | Discovered new exit (range 11) 1931 | -8/Materials | Discovered new exit (range 11) 1945 | -8/Materials | Entered Factory 1945 | -7/Factory | Evolved 2 slots: Power x1, Utility x1 2018 | -7/Factory | Discovered new exit (range 14) 2037 | -7/Factory | Lost 4 parts (4n) 2287 | -7/Factory | Build established: Mutant 2560 | -7/Factory | Discovered new exit (range 16) 2573 | -7/Factory | Fabricated VTOL Module? 2666 | -7/Factory | Discovered new exit (range 16) 2673 | -7/Factory | Identified exit to Lower Caves 2745 | -7/Factory | Search patrols dispatched 2792 | -7/Factory | Fabricated VTOL Module? 2854 | -7/Factory | Core integrity fell below 50% 2953 | -7/Factory | Identified exit to Factory 2954 | -7/Factory | Entered another Factory area 2954 | -6/Factory | Evolved 2 slots: Propulsion x2 2958 | -6/Factory | Identified exit to DSF 3217 | -6/Factory | Sucked down chute 3217 | -6/Factory | Entered Waste 3218 | -6/Waste | Joined by Warlord forces that had cleared the area 3245 | -6/Waste | Lost 4 parts (4n) 3320 | -6/Waste | A Compactor rumbled back to life 3320 | -6/Waste | Spotted C-40 Crusher 3320 | -6/Waste | Allies destroyed C-40 Crusher 3432 | -6/Waste | Build established: Hacker-Mutant 3463 | -6/Waste | Discovered new exit (range 16) 3470 | -6/Waste | A Compactor rumbled back to life 3470 | -6/Waste | Spotted C-40 Crusher 3470 | -6/Waste | Allies destroyed C-40 Crusher 3610 | -6/Waste | Identified exit to Factory 3627 | -6/Waste | Entered Factory 3627 | -6/Factory | Accompanied by 18 allies 3775 | -6/Factory | Lost 3 allies 4066 | -6/Factory | Fabricated VTOL Module (x2) 4079 | -6/Factory | Discovered new exit (range 15) 4125 | -6/Factory | Lost 3 allies 4137 | -6/Factory | Identified exit to Extension 4177 | -6/Factory | Entered Extension 4177 | -6/Extension | Accompanied by 12 allies 4364 | -6/Extension | Rescued a captive Derelict 4366 | -6/Extension | Rescued a captive Derelict 4400 | -6/Extension | Rescued A7 4615 | -6/Extension | Spotted B-75 Beast 4637 | -6/Extension | Spotted B-75 Beast 4658 | -6/Extension | Allies destroyed B-75 Beast 4688 | -6/Extension | Lost 9 allies 4761 | -6/Extension | Discovered new exit (range 15) 4762 | -6/Extension | Discovered new exit (range 15) 4776 | -6/Extension | Identified exit to Cetus 4782 | -6/Extension | Identified exit to Factory 4796 | -6/Extension | Rescued a captive Derelict 4797 | -6/Extension | Rescued a captive Derelict 4877 | -6/Extension | First assault squad dispatched 4936 | -6/Extension | High security lockdown imminent 4976 | -6/Extension | Lost 7 allies 5016 | -6/Extension | High security lockdown engaged 5019 | -6/Extension | Entered Factory 5019 | -5/Factory | Accompanied by 4 allies (A7) 5019 | -5/Factory | Evolved 2 slots: Utility x2 5219 | -5/Factory | Discovered new exit (range 5) 5232 | -5/Factory | Sucked down chute 5232 | -5/Factory | Entered Waste 5233 | -5/Waste | Joined by Warlord forces that had cleared the area 5237 | -5/Waste | Found Prototype Processor 5237 | -5/Waste | Identified Exp. Target Analyzer 5245 | -5/Waste | 1 allies followed down the chute 5369 | -5/Waste | Discovered new exit (range 13) 5525 | -5/Waste | Identified exit to Factory 5526 | -5/Waste | Entered Factory 5526 | -5/Factory | Accompanied by 20 allies 5689 | -5/Factory | Spotted B-75 Beast 5725 | -5/Factory | Garrison activated, responded to threat 5782 | -5/Factory | Discovered new exit (range 5) 5786 | -5/Factory | Identified exit to Factory 5793 | -5/Factory | Entered another Factory area 5793 | -4/Factory | Evolved 2 slots: Propulsion x1, Utility x1 5795 | -4/Factory | Identified exit to DSF 5834 | -4/Factory | Build established: Hacker-Sprinter 5859 | -4/Factory | Fabricated VTOL Module? 5884 | -4/Factory | Spotted B-86 Titan 6217 | -4/Factory | Discovered new exit (range 6) 6218 | -4/Factory | Identified exit to Research 6293 | -4/Factory | First assault squad dispatched 6328 | -4/Factory | Entered Research 6328 | -3/Research | Evolved 2 slots: Utility x1, Weapon x1 6442 | -3/Research | Found Prototype Device 6442 | -3/Research | Identified Exp. Thermal Shield 6608 | -3/Research | Identified exit to DSF 6702 | -3/Research | Discovered new exit (range 13) 6709 | -3/Research | Identified exit to Research 6714 | -3/Research | Entered another Research area 6714 | -2/Research | Evolved 2 slots: Power x1, Propulsion x1 6744 | -2/Research | Lost 3 parts (2n1u) 6769 | -2/Research | Fabricated VTOL Module (x2) 6827 | -2/Research | Discovered new exit (range 8) 6852 | -2/Research | Spotted B-90 Cyclops 6927 | -2/Research | Found Prototype Processor 6927 | -2/Research | Identified Exp. Core Analyzer 6934 | -2/Research | Lost 16 parts (3p7n3u3w) 6946 | -2/Research | Found Prototype Device 6946 | -2/Research | Identified Exp. Focal Shield 6976 | -2/Research | Found Prototype Processor 6976 | -2/Research | Identified Exp. Targeting Computer 7006 | -2/Research | System corruption reached 10% 7028 | -2/Research | Lost 3 parts (1p2u) 7098 | -2/Research | Core integrity fell below 50% 7104 | -2/Research | Core integrity fell below 20% 7131 | -2/Research | Destroyed by P-80 Master with Gamma Rifle Last Messages --------------- 07102_ Acquired 2 matter. 07103_ Knocked back. 07103_ Adv. Sensor Array destroyed. 07103_ Adv. Signal Interpreter destroyed. 07103_ Critical hit (Blast). 07103_ Knocked back. 07104_ K-01 Serf collects debris. 07105_ Acquired 1 matter. 07107_ Knocked back. 07108_ Acquired 2 matter. 07119_ System corrupted: Matter fused (-7). 07121_ K-01 Serf cleans the Quantum Generator. 07127_ Slammed into R-10 Processor. 07127_ Destabilizing: System corrupted (+1). 07127_ K-01 Serf cleans the Quantum Generator. 07128_ Slammed into R-10 Processor. 07128_ R-10 Processor knocked back. 07130_ Slammed into R-10 Processor. 07130_ Destabilizing: Core damaged (-43). Map ----- +----------------------------------------------------+ | ????# #??????????????????????????????????????? | | ????# #??????????????????????????????????????? | | ????# #??????????????????????????????????????? | | ????# #??????????????????????????????????????? | | ????# #??????????????????????????????????????? | | ????# #??????????????????????????????????????? | | ????# #??????????????????????????????????????? | | ????# #??????????????????????????????????????? | | ????###+###??????????????????????????????????????? | | ??????# #????????????????????????????????????????? | | ??????# #????????????????????????????????????????? | | ####### #????????????????????????????????????????? | | #????????????????????????????????????????? | | #### #????????????????????????????????????????? | | # #????????????????????????????????????????? | | + #????????????????????????????????????????? | | ! #### #????????????????????????????????????????? | | ???# #????????????????????????????????????????? | | ???# #????????????????????????????????????????? | | ???# ######+#### #????????????????????????????? | | #/##### ##??#+#??????????????????????? | | # ?k #??????????????????????? | | # ###+????#k#??????????????????????? | | # ##???????#R#??????????????????????? | | # #????????# #??????????????????????? | | ###### #????????#@#??????????????????????? | | #+######+##???????# #??????????????????????? | | + #???????# #??????????????????????? | | #### #???????# #??????????????????????? | | #??# #???????# #??????????????????????? | | #??# #???????# #??????????????????????? | | #??###################p##?????????????????????? | | #??????????# p #?????????????????????? | | #??????????# ! p#?????????????????????? | | ##?????????# """""""p #?????????????????????? | | !#?????????# """""""p #?????????????????????? | | #?????????# """"""" #?????????????????????? | | #?????????# #?????????????????????? | | #?????????# ! #?????????????????????? | | !#?????????# #?????????????????????? | | ############ #?????????????????????? | | # # ! " " #?????????????????????? | | # ] # "Y" #?????????????????????? | | + # """ #?????????????????????? | | # #####/#+######?????????????????????? | | * / #???# #?????????????????????????? | | ############???# #?????????????????????????? | | #? ########### #?????????????????????????? | | # # / #?????????????????????????? | | = # # # #?????????????????????????? | +----------------------------------------------------+ Best States ------------- Heat Dissipation 68 Energy Generation 39 Energy Capacity 565 Matter Stores 300 Matter Capacity 300 Sight Range 16 Robot Scan Range 16 Terrain Scan Density 10 ECM Strength 2 Cloak Strength 3 Additional Mass Support 12 Corruption Block 8 Armor Coverage 600 Propulsion Shielding 66 Evasion (%) 77 Targeting Accuracy 13 Core Analysis 8 Armor Integrity Analysis 30 Recoil Reduction 2 Offensive Hacking 10 Defensive Hacking 50 Item Schematics ----------------- Flight Unit | -10/Materials | Hacked VTOL Module | -9/Materials | Hacked Hacking Suite | -8/Materials | Hacked Robot Schematics ------------------ None Fabricated ------------ VTOL Module | x2 | -7/Factory VTOL Module | x2 | -7/Factory VTOL Module | x2 | -6/Factory VTOL Module | x2 | -4/Factory VTOL Module | x2 | -2/Research Alien Tech Used ----------------- None Achievements -------------- Below Generalissimo Hehehe Prison Break Production Line We Are Legion Challenges ------------ None Game ------ Seed ModifiedTerrainDesublimator Manual? 0 Play Time 02:30:48 Cumulative 78.0 hours Start 2024.03.05 @ 21:41:10 End 2024.03.06 @ 22:11:54 Sessions 6 Manual Loads 0 Difficulty Rogue Special Mode None Game No. 78 Rogue 78 Adventurer 0 Explorer 0 Win Type - Total 0 Types 0/0/0/0/0/0/0/0/0 Lore% 31 Gallery% 46 Achievement% 31 Wizard Run 0 Options --------- Layout 2 ASCII 1 Keyboard 1 Movement Numpad Keybinds 0 Fullscreen 2 Font 32/TamsynBold Map View 50x44 Zoom Use 0% Tactical HUD 1 Map Filters NONE Filters NONE Steam 1 RUN: 3f7c7947-0bb9-41c7-ab34-e9fb5d8270ae